[Event "IIFL WEALTH VI Mumbai Open 2021"]
[Site "Mumbai"]
[Date "2022.01.03"]
[Round "5.2"]
[White "Alvares Sidarth"]
[Black "Krishnan Ritvik"]
[Result "0-1"]
[ECO "B24"]
[WhiteElo "1513"]
[BlackElo "1750"]
[Annotator "NA RC"]
[PlyCount "62"]
[EventDate "2021.12.30"]
[EventType "swiss"]
[EventCountry "IND"]
[SourceTitle "playchess.com"]
[Source "ChessBase"]
[SourceQuality "1"]
[TimeControl "5400+30"]

1. e4 {[%emt 0:00:08]} c5 {[%emt 0:00:07]} 2. Nc3 {[%emt 0:00:15]} Nc6 {[%emt 0:00:05]} 3. Bc4 {[%emt 0:00:56]} g6 {[%emt 0:00:07]} 4. d3 {[%emt 0:00:26]} Bg7 {[%emt 0:00:06]} 5. f4 {[%emt 0:00:07]} e6 {[%emt 0:00:19]} 6. Nf3 {[%emt 0:00:11]} Nge7 {[%emt 0:00:10]} 7. O-O {[%emt 0:01:17]} d5 {[%emt 0:00:22]} 8. Bb3 {[%emt 0:00:37]} O-O {[%emt 0:00:14]} 9. Qe1 {[%emt 0:00:29]} Na5 10. Qh4 {[%emt 0:08:05]} c4 {[%emt 0:02:03]} 11. Ba4 {[%emt 0:04:39]} a6 {[%emt 0:02:37]} 12. f5 {[%emt 0:06:46]} exf5 {[%emt 0:01:04]} 13. dxc4 {[%emt 0:02:43]} dxc4 {[%emt 0:01:19]} 14. Rd1 {[%emt 0:00:22]} Qc7 {[%emt 0:04:14]} 15. Bd7 {[%emt 0:13:36]} Bxd7 {[%emt 0:14:28]} 16. Qxe7 {[%emt 0:00:20]} Qb6+ {[%emt 0:00:35]} 17. Kh1 {[%emt 0:00:37]} fxe4 {[%emt 0:01:30]} 18. Nxe4 {[%emt 0:03:11]} Bf5 {[%emt 0:06:28]} 19. Rd6 {[%emt 0:02:51]} Nc6 {[%emt 0:02:06]} 20. Nf6+ {[%emt 0:04:38]} Kh8 {[%emt 0:00:28]} 21. Nxh7 {[%emt 0:04:19]} Nxe7 {[%emt 0:01:35]} 22. Rxb6 {[%emt 0:00:31]} Kxh7 {[%emt 0:00:25]} 23. Rxb7 {[%emt 0:00:54]} Bf6 {[%emt 0:02:01]} 24. Rb6 {[%emt 0:01:59]} Nd5 {[%emt 0:02:42]} 25. Rc6 {[%emt 0:01:13]} Rfc8 {[%emt 0:00:48]} 26. Rd6 {[%emt 0:00:58]} Rd8 {[%emt 0:00:33]} 27. Rc6 {[%emt 0:01:03]} c3 {[%emt 0:00:57]} 28. bxc3 Bxc3 {[%emt 0:00:43]} 29. Rb1 {[%emt 0:01:46]} Rab8 {[%emt 0:00:59]} 30. Rb3 {[%emt 0:01:28]} Bxc2 {[%emt 0:01:01]} 31. Ng5+ {[%emt 0:03:11]} Kg7 {[%emt 0:00:31]} 0-1

[Event "IIFL WEALTH VI Mumbai Open 2021"]
[Site "Mumbai"]
[Date "2022.01.03"]
[Round "5.3"]
[White "Majumder Shrayan"]
[Black "Mishra Sanjeev"]
[Result "1-0"]
[ECO "A45"]
[WhiteElo "1669"]
[BlackElo "1605"]
[Annotator "NA"]
[PlyCount "115"]
[EventDate "2021.12.30"]
[EventType "swiss"]
[EventCountry "IND"]
[SourceTitle "playchess.com"]
[Source "ChessBase"]
[SourceQuality "1"]
[TimeControl "5400+30"]

1. d4 {[%emt 0:00:14]} Nf6 2. Nc3 d5 {[%emt 0:00:31]} 3. Bf4 {[%emt 0:00:21]} c6 {[%emt 0:00:08]} 4. e3 {[%emt 0:00:14]} Bf5 {[%emt 0:00:17]} 5. f3 e6 {[%emt 0:00:18]} 6. g4 {[%emt 0:00:29]} Bg6 {[%emt 0:00:02]} 7. h4 h6 {[%emt 0:00:45]} 8. Bd3 {[%emt 0:02:36]} Bxd3 {[%emt 0:00:13]} 9. Qxd3 {[%emt 0:00:08]} Bd6 {[%emt 0:00:27]} 10. Nge2 {[%emt 0:02:01]} Bxf4 {[%emt 0:02:29]} 11. Nxf4 {[%emt 0:00:20]} Qd6 {[%emt 0:00:11]} 12. O-O-O {[%emt 0:02:54]} Na6 {[%emt 0:02:54]} 13. g5 {[%emt 0:09:09]} Nd7 {[%emt 0:05:56]} 14. gxh6 {[%emt 0:06:07]} Rxh6 {[%emt 0:03:07]} 15. Rdg1 {[%emt 0:02:37]} e5 {[%emt 0:06:36]} 16. dxe5 {[%emt 0:11:44]} Nxe5 {[%emt 0:00:17]} 17. Qf5 {[%emt 0:01:32]} g6 {[%emt 0:03:24]} 18. Qg5 {[%emt 0:07:02]} Rh8 {[%emt 0:01:06]} 19. Rd1 {[%emt 0:06:02]} Nxf3 {[%emt 0:11:21]} 20. Qg3 {[%emt 0:16:03]} Ne5 {[%emt 0:02:00]} 21. Ne4 {[%emt 0:05:40]} Qe7 {[%emt 0:04:59]} 22. Nxd5 {[%emt 0:01:09]} cxd5 {[%emt 0:00:29]} 23. Rxd5 {[%emt 0:00:06]} Nc4 {[%emt 0:04:01]} 24. Nd6+ {[%emt 0:00:13]} Nxd6 {[%emt 0:00:03]} 25. Re5 {[%emt 0:00:06]} Nc7 {[%emt 0:07:53]} 26. Rxe7+ {[%emt 0:00:13]} Kxe7 {[%emt 0:00:02]} 27. Rd1 {[%emt 0:01:01]} Rhd8 {[%emt 0:01:34]} 28. Qg5+ {[%emt 0:02:10]} Kd7 {[%emt 0:10:22]} 29. Qf6 {[%emt 0:04:23]} Kc6 {[%emt 0:03:18]} 30. Qc3+ {[%emt 0:01:09]} Kb6 {[%emt 0:04:09]} 31. Qb4+ {[%emt 0:03:19]} Kc6 {[%emt 0:00:30]} 32. Qc3+ {[%emt 0:03:18]} Kb6 {[%emt 0:00:13]} 33. a4 {[%emt 0:03:07]} a5 {[%emt 0:01:44]} 34. b4 {[%emt 0:00:32]} axb4 {[%emt 0:14:34]} 35. Qxb4+ {[%emt 0:00:10]} Kc6 {[%emt 0:00:31]} 36. e4 {[%emt 0:06:58]} Na6 {[%emt 0:03:01]} 37. Qd4 {[%emt 0:01:56]} Nc5 {[%emt 0:06:48]} 38. Qd5+ {[%emt 0:00:02]} Kb6 {[%emt 0:00:01]} 39. e5 {[%emt 0:01:36]} Nde4 {[%emt 0:01:21]} 40. Qxf7 {[%emt 0:00:14]} Rxd1+ {[%emt 0:01:17]} 41. Kxd1 {[%emt 0:00:03]} Rd8+ {[%emt 0:01:19]} 42. Ke1 {[%emt 0:00:30]} Kc6 {[%emt 0:00:38]} 43. Qxg6+ {[%emt 0:01:16]} Kd5 {[%emt 0:00:25]} 44. e6 {[%emt 0:01:20]} Kd6 {[%emt 0:00:35]} 45. h5 {[%emt 0:00:40]} Ra8 {[%emt 0:00:27]} 46. h6 {[%emt 0:01:22]} Rxa4 {[%emt 0:00:20]} 47. e7+ {[%emt 0:00:30]} Kxe7 {[%emt 0:00:07]} 48. Qg7+ {[%emt 0:00:02]} Kd6 {[%emt 0:00:38]} 49. h7 {[%emt 0:00:02]} Ne6 {[%emt 0:00:16]} 50. Qb2 {[%emt 0:01:00]} N4c5 {[%emt 0:00:35]} 51. h8=Q {[%emt 0:00:24]} Re4+ {[%emt 0:00:05]} 52. Kd1 {[%emt 0:00:13]} Rf4 {[%emt 0:00:48]} 53. Qb6+ {[%emt 0:00:18]} Kd5 {[%emt 0:00:12]} 54. Qh1+ {[%emt 0:00:19]} Kc4 {[%emt 0:00:40]} 55. Qh3 {[%emt 0:01:14]} Rd4+ {[%emt 0:00:32]} 56. Kc1 {[%emt 0:00:19]} Rf4 {[%emt 0:00:45]} 57. Qbxe6+ {[%emt 0:00:26]} Nxe6 {[%emt 0:00:20]} 58. Qxe6+ {[%emt 0:00:05]} 1-0

[Event "IIFL WEALTH VI Mumbai Open 2021"]
[Site "Mumbai"]
[Date "2022.01.03"]
[Round "5.4"]
[White "Iyer Arvind"]
[Black "Daksh Goyal"]
[Result "1-0"]
[ECO "B22"]
[WhiteElo "1662"]
[BlackElo "1352"]
[Annotator "NA"]
[PlyCount "139"]
[EventDate "2021.12.30"]
[EventType "swiss"]
[EventCountry "IND"]
[SourceTitle "playchess.com"]
[Source "ChessBase"]
[SourceQuality "1"]
[TimeControl "5400+30"]

1. e4 {[%emt 0:09:30]} c5 {[%emt 0:00:09]} 2. c3 {[%emt 0:00:39]} d5 {[%emt 0:00:09]} 3. exd5 {[%emt 0:00:09]} Qxd5 {[%emt 0:00:08]} 4. d4 {[%emt 0:00:10]} g6 {[%emt 0:00:15]} 5. Nf3 {[%emt 0:01:07]} Bg7 {[%emt 0:00:22]} 6. Be3 {[%emt 0:01:30]} Nh6 {[%emt 0:00:53]} 7. Na3 {[%emt 0:06:49]} cxd4 {[%emt 0:09:59]} 8. Bxd4 {[%emt 0:04:50]} Qe4+ {[%emt 0:07:12]} 9. Be2 {[%emt 0:01:25]} Bxd4 {[%emt 0:11:26]} 10. Qxd4 {[%emt 0:05:37]} Qxd4 11. Nxd4 {[%emt 0:01:06]} O-O {[%emt 0:08:20]} 12. Nab5 {[%emt 0:03:07]} Na6 {[%emt 0:10:17]} 13. Bf3 {[%emt 0:00:53]} e5 {[%emt 0:03:38]} 14. Nb3 {[%emt 0:01:12]} Bd7 {[%emt 0:07:48]} 15. Nd6 {[%emt 0:01:44]} Bc6 {[%emt 0:01:07]} 16. Nxb7 {[%emt 0:09:54]} e4 {[%emt 0:01:08]} 17. N7a5 {[%emt 0:00:16]} exf3 {[%emt 0:00:38]} 18. Nxc6 {[%emt 0:00:06]} Rfe8+ {[%emt 0:03:09]} 19. Kf1 {[%emt 0:02:11]} Re2 {[%emt 0:00:50]} 20. gxf3 {[%emt 0:00:40]} Rxb2 {[%emt 0:00:55]} 21. Kg2 {[%emt 0:00:31]} Nf5 {[%emt 0:04:54]} 22. Ncd4 {[%emt 0:13:00]} Nxd4 {[%emt 0:05:35]} 23. Nxd4 {[%emt 0:02:30]} Nc5 {[%emt 0:06:47]} 24. Rhb1 {[%emt 0:01:45]} Rab8 {[%emt 0:00:31]} 25. Nb3 {[%emt 0:02:01]} Rxb1 {[%emt 0:08:54]} 26. Rxb1 {[%emt 0:00:01]} Ne6 {[%emt 0:00:40]} 27. Rc1 {[%emt 0:01:21]} Nf4+ {[%emt 0:01:39]} 28. Kf1 {[%emt 0:01:02]} Kf8 {[%emt 0:00:28]} 29. c4 {[%emt 0:00:21]} Ke7 {[%emt 0:00:40]} 30. c5 {[%emt 0:00:11]} Kd7 {[%emt 0:01:56]} 31. Rc4 {[%emt 0:00:54]} Ne6 {[%emt 0:00:46]} 32. Ra4 {[%emt 0:00:34]} Ra8 {[%emt 0:00:30]} 33. Ra6 {[%emt 0:03:54]} Nc7 {[%emt 0:02:26]} 34. Rd6+ {[%emt 0:02:05]} Ke7 {[%emt 0:00:10]} 35. Nd4 {[%emt 0:04:54]} Ne6 {[%emt 0:00:42]} 36. Nxe6 {[%emt 0:01:25]} fxe6 {[%emt 0:00:03]} 37. Ra6 {[%emt 0:00:12]} Kf6 {[%emt 0:00:38]} 38. c6 {[%emt 0:01:11]} Ke7 {[%emt 0:02:03]} 39. c7 {[%emt 0:01:26]} Kd7 {[%emt 0:00:16]} 40. c8=Q+ {[%emt 0:00:07]} Kxc8 {[%emt 0:01:26]} 41. Rxe6 {[%emt 0:00:03]} Kd7 {[%emt 0:00:17]} 42. Rf6 {[%emt 0:00:05]} a5 {[%emt 0:00:42]} 43. Rf7+ {[%emt 0:00:10]} Kc6 {[%emt 0:00:27]} 44. Rxh7 {[%emt 0:00:48]} Kb5 {[%emt 0:00:24]} 45. Re7 {[%emt 0:00:33]} Kb4 {[%emt 0:00:42]} 46. Re3 {[%emt 0:01:15]} a4 {[%emt 0:00:35]} 47. Ke2 {[%emt 0:00:26]} a3 48. Kd2 {[%emt 0:00:28]} Rh8 {[%emt 0:01:07]} 49. Re4+ {[%emt 0:00:11]} Ka5 {[%emt 0:00:15]} 50. h4 {[%emt 0:00:29]} Rb8 {[%emt 0:00:24]} 51. Re2 {[%emt 0:00:48]} Rb4 {[%emt 0:00:55]} 52. Kc3 {[%emt 0:00:56]} Rxh4 {[%emt 0:00:38]} 53. Re5+ {[%emt 0:00:00]} Kb6 {[%emt 0:00:27]} 54. Re6+ {[%emt 0:00:01]} Kc5 {[%emt 0:00:15]} 55. Rxg6 {[%emt 0:00:22]} Rh2 {[%emt 0:00:19]} 56. Rf6 {[%emt 0:00:54]} Rxf2 {[%emt 0:00:21]} 57. Kb3 {[%emt 0:00:01]} Rb2+ {[%emt 0:00:42]} 58. Kxa3 {[%emt 0:01:05]} Rb8 {[%emt 0:00:14]} 59. f4 {[%emt 0:00:30]} Kd5 {[%emt 0:00:35]} 60. Ra6 {[%emt 0:01:59]} Kc4 {[%emt 0:00:48]} 61. f5 {[%emt 0:00:21]} Rb5 {[%emt 0:00:39]} 62. f6 {[%emt 0:00:44]} Rf5 {[%emt 0:00:16]} 63. Ka4 {[%emt 0:00:26]} Rf2 {[%emt 0:00:35]} 64. a3 {[%emt 0:00:21]} Rf3 {[%emt 0:00:50]} 65. Ka5 {[%emt 0:01:11]} Rxa3+ {[%emt 0:00:21]} 66. Kb6 {[%emt 0:00:12]} Rf3 {[%emt 0:00:43]} 67. Kc7 {[%emt 0:00:01]} Kd5 {[%emt 0:00:24]} 68. Kd7 {[%emt 0:00:01]} Ke5 {[%emt 0:00:16]} 69. Ke7 {[%emt 0:00:01]} Rb3 {[%emt 0:00:41]} 70. f7 {[%emt 0:00:08]} 1-0

[Event "IIFL WEALTH VI Mumbai Open 2021"]
[Site "Mumbai"]
[Date "2022.01.03"]
[Round "5.5"]
[White "Aansh Nandan Nerurkar"]
[Black "Raghu Ram Reddy Seelam"]
[Result "0-1"]
[ECO "C54"]
[WhiteElo "1597"]
[BlackElo "1712"]
[Annotator "NA RC"]
[PlyCount "168"]
[EventDate "2021.12.30"]
[EventType "swiss"]
[EventCountry "IND"]
[SourceTitle "playchess.com"]
[Source "ChessBase"]
[SourceQuality "1"]
[TimeControl "5400+30"]

1. e4 e5 {[%emt 0:00:05]} 2. Nf3 {[%emt 0:00:23]} Nc6 {[%emt 0:00:29]} 3. Bc4 {[%emt 0:00:08]} Bc5 {[%emt 0:00:05]} 4. c3 {[%emt 0:00:07]} Nf6 {[%emt 0:00:02]} 5. d4 {[%emt 0:00:00]} exd4 {[%emt 0:00:02]} 6. e5 {[%emt 0:00:19]} d5 {[%emt 0:00:03]} 7. Bb5 {[%emt 0:00:19]} Ne4 {[%emt 0:00:02]} 8. cxd4 {[%emt 0:00:30]} Bb6 {[%emt 0:00:02]} 9. Nc3 {[%emt 0:00:03]} Bg4 {[%emt 0:04:37]} 10. h3 {[%emt 0:01:05]} Bh5 {[%emt 0:00:30]} 11. Qc2 {[%emt 0:00:44]} Nxc3 {[%emt 0:13:58]} 12. bxc3 {[%emt 0:00:42]} O-O {[%emt 0:02:11]} 13. Bd3 {[%emt 0:00:55]} Bg6 {[%emt 0:00:42]} 14. O-O {[%emt 0:00:32]} Bxd3 {[%emt 0:01:09]} 15. Qxd3 {[%emt 0:00:11]} h6 {[%emt 0:06:58]} 16. Bf4 {[%emt 0:01:05]} Qd7 {[%emt 0:01:17]} 17. Rfe1 {[%emt 0:00:47]} Ne7 {[%emt 0:02:21]} 18. Bh2 {[%emt 0:01:26]} Rac8 {[%emt 0:01:22]} 19. Rab1 {[%emt 0:01:24]} c5 {[%emt 0:01:00]} 20. Rb2 {[%emt 0:05:35]} Ba5 {[%emt 0:07:13]} 21. Reb1 {[%emt 0:04:05]} b6 {[%emt 0:00:21]} 22. Rb5 {[%emt 0:01:52]} cxd4 23. cxd4 {[%emt 0:00:21]} Rc3 {[%emt 0:00:55]} 24. Qe2 {[%emt 0:00:59]} Rfc8 {[%emt 0:00:10]} 25. R5b2 {[%emt 0:00:55]} Rc1+ {[%emt 0:00:19]} 26. Ne1 {[%emt 0:00:52]} Bxe1 {[%emt 0:00:10]} 27. g4 {[%emt 0:02:04]} Ba5+ {[%emt 0:00:49]} 28. Kg2 {[%emt 0:00:14]} Qa4 {[%emt 0:00:24]} 29. Rxc1 {[%emt 0:00:29]} Rxc1 {[%emt 0:00:02]} 30. Bf4 {[%emt 0:00:12]} Rc6 {[%emt 0:01:30]} 31. Be3 {[%emt 0:00:18]} Bc3 {[%emt 0:00:28]} 32. Qb5 {[%emt 0:00:14]} Qxb5 {[%emt 0:00:06]} 33. Rxb5 {[%emt 0:00:07]} Rc4 {[%emt 0:00:24]} 34. f4 {[%emt 0:01:50]} Bxd4 {[%emt 0:00:30]} 35. Bxd4 Rxd4 {[%emt 0:00:00]} 36. Kg3 {[%emt 0:00:19]} Rd3+ {[%emt 0:00:00]} 37. Kg2 {[%emt 0:00:04]} Rd2+ {[%emt 0:00:00]} 38. Kg3 {[%emt 0:00:04]} Rxa2 {[%emt 0:00:03]} 39. f5 {[%emt 0:00:07]} Ra3+ {[%emt 0:00:22]} 40. Kg2 {[%emt 0:00:07]} Kf8 {[%emt 0:00:30]} 41. Rb2 {[%emt 0:00:07]} Ke8 {[%emt 0:00:00]} 42. Rc2 {[%emt 0:00:30]} Kd7 {[%emt 0:00:18]} 43. h4 {[%emt 0:00:30]} Re3 {[%emt 0:00:30]} 44. Kf2 {[%emt 0:00:30]} Rxe5 {[%emt 0:00:30]} 45. Kf3 {[%emt 0:00:30]} Re4 {[%emt 0:00:30]} 46. Rd2 {[%emt 0:00:00]} Ra4 {[%emt 0:00:00]} 47. h5 {[%emt 0:00:00]} a5 {[%emt 0:00:00]} 48. Rb2 {[%emt 0:00:00]} Rb4 {[%emt 0:00:00]} 49. Ra2 {[%emt 0:00:00]} a4 {[%emt 0:00:00]} 50. g5 {[%emt 0:00:00]} Nxf5 {[%emt 0:00:00]} 51. gxh6 {[%emt 0:00:00]} gxh6 {[%emt 0:00:00]} 52. Kg2 {[%emt 0:00:00]} b5 {[%emt 0:00:00]} 53. Kf3 {[%emt 0:00:00]} Rc4 {[%emt 0:00:07]} 54. Kf2 {[%emt 0:00:00]} Rc3 {[%emt 0:00:10]} 55. Kg2 {[%emt 0:00:00]} a3 {[%emt 0:00:05]} 56. Kf2 {[%emt 0:00:00]} b4 {[%emt 0:00:05]} 57. Ke1 {[%emt 0:00:00]} b3 {[%emt 0:00:21]} 58. Rxa3 {[%emt 0:00:00]} b2 {[%emt 0:00:05]} 59. Rxc3 {[%emt 0:00:00]} b1=Q+ {[%emt 0:00:06]} 60. Kd2 {[%emt 0:00:06]} Qb2+ {[%emt 0:00:16]} 61. Rc2 {[%emt 0:00:41]} Qxc2+ {[%emt 0:00:13]} 62. Kxc2 {[%emt 0:00:04]} Ng3 {[%emt 0:00:08]} 63. Kd3 {[%emt 0:00:04]} Nxh5 {[%emt 0:00:03]} 64. Kd4 {[%emt 0:00:04]} Kd6 {[%emt 0:00:03]} 65. Kd3 {[%emt 0:00:05]} Ke5 {[%emt 0:00:03]} 66. Ke3 {[%emt 0:00:04]} d4+ {[%emt 0:00:03]} 67. Kd3 {[%emt 0:00:04]} Kd5 {[%emt 0:00:02]} 68. Kd2 {[%emt 0:00:08]} Ke4 {[%emt 0:00:03]} 69. Ke2 {[%emt 0:00:04]} d3+ {[%emt 0:00:03]} 70. Kd2 {[%emt 0:00:04]} Kd4 {[%emt 0:00:02]} 71. Kd1 {[%emt 0:00:05]} Ke3 {[%emt 0:00:04]} 72. Ke1 {[%emt 0:00:04]} d2+ {[%emt 0:00:04]} 73. Kd1 {[%emt 0:00:03]} f5 {[%emt 0:00:11]} 74. Kc2 {[%emt 0:00:03]} Ke2 {[%emt 0:00:03]} 75. Kb2 {[%emt 0:00:08]} d1=Q {[%emt 0:00:02]} 76. Kc3 {[%emt 0:00:06]} Ke3 {[%emt 0:00:07]} 77. Kc4 {[%emt 0:00:03]} Ke4 {[%emt 0:00:18]} 78. Kc5 {[%emt 0:00:04]} Ke5 {[%emt 0:00:04]} 79. Kc6 {[%emt 0:00:04]} Qd5+ {[%emt 0:00:03]} 80. Kc7 {[%emt 0:00:06]} Qd6+ {[%emt 0:00:03]} 81. Kb7 {[%emt 0:00:06]} Kd5 {[%emt 0:00:05]} 82. Ka7 {[%emt 0:00:02]} Qb4 {[%emt 0:00:05]} 83. Ka8 {[%emt 0:00:04]} Kc6 {[%emt 0:00:03]} 84. Ka7 {[%emt 0:00:04]} Qb7# {[%emt 0:00:03]} 0-1

[Event "IIFL WEALTH VI Mumbai Open 2021"]
[Site "Mumbai"]
[Date "2022.01.04"]
[Round "6.1"]
[White "Krishnan Ritvik"]
[Black "Iyer Arvind"]
[Result "0-1"]
[ECO "C53"]
[WhiteElo "1750"]
[BlackElo "1662"]
[Annotator "NA"]
[PlyCount "60"]
[EventDate "2021.12.30"]
[EventType "swiss"]
[EventCountry "IND"]
[SourceTitle "playchess.com"]
[Source "ChessBase"]
[SourceQuality "1"]
[TimeControl "5400+30"]

1. e4 {[%emt 0:00:01]} e5 {[%emt 0:08:55]} 2. Nf3 {[%emt 0:00:08]} Nc6 {[%emt 0:00:14]} 3. Bc4 {[%emt 0:00:09]} Bc5 {[%emt 0:00:16]} 4. c3 {[%emt 0:00:06]} d6 {[%emt 0:00:44]} 5. d4 {[%emt 0:01:08]} exd4 {[%emt 0:01:18]} 6. cxd4 {[%emt 0:00:10]} Bb4+ {[%emt 0:00:04]} 7. Nc3 {[%emt 0:05:26]} Nf6 {[%emt 0:03:39]} 8. O-O {[%emt 0:09:09]} O-O {[%emt 0:03:47]} 9. Bg5 {[%emt 0:03:09]} h6 {[%emt 0:00:46]} 10. Bh4 {[%emt 0:03:30]} Bg4 {[%emt 0:06:41]} 11. d5 {[%emt 0:09:05]} Ne5 {[%emt 0:03:28]} 12. Be2 {[%emt 0:00:56]} Ng6 {[%emt 0:02:43]} 13. Bxf6 {[%emt 0:05:12]} Qxf6 {[%emt 0:01:21]} 14. Qd4 {[%emt 0:00:59]} Bxc3 {[%emt 0:02:06]} 15. Qxc3 {[%emt 0:15:44]} Nf4 {[%emt 0:03:17]} 16. Rfe1 {[%emt 0:03:55]} Qg6 {[%emt 0:13:11]} 17. Nh4 {[%emt 0:03:40]} Qg5 {[%emt 0:04:14]} 18. Bxg4 {[%emt 0:01:19]} Qxg4 {[%emt 0:01:22]} 19. Qf3 {[%emt 0:00:59]} Qxh4 {[%emt 0:01:44]} 20. g3 {[%emt 0:00:12]} Nh3+ {[%emt 0:02:09]} 21. Kg2 {[%emt 0:00:16]} Ng5 {[%emt 0:01:08]} 22. gxh4 {[%emt 0:00:12]} Nxf3 {[%emt 0:00:07]} 23. Kxf3 {[%emt 0:00:05]} Rae8 {[%emt 0:00:29]} 24. Rac1 {[%emt 0:05:46]} Re7 {[%emt 0:00:49]} 25. Kf4 {[%emt 0:02:12]} f5 {[%emt 0:05:25]} 26. exf5 {[%emt 0:03:24]} Ref7 {[%emt 0:00:07]} 27. Kg3 {[%emt 0:02:45]} Rxf5 {[%emt 0:00:12]} 28. Rxc7 {[%emt 0:00:24]} Rxf2 {[%emt 0:00:18]} 29. Ree7 {[%emt 0:01:35]} R8f3+ {[%emt 0:00:01]} 30. Kg4 {[%emt 0:00:12]} h5+ 0-1

[Event "IIFL WEALTH VI Mumbai Open 2021"]
[Site "Mumbai"]
[Date "2022.01.04"]
[Round "6.2"]
[White "Adireddy Arjun"]
[Black "Majumder Shrayan"]
[Result "1/2-1/2"]
[ECO "C63"]
[WhiteElo "1658"]
[BlackElo "1669"]
[Annotator "NA RC"]
[PlyCount "119"]
[EventDate "2021.12.30"]
[EventType "swiss"]
[EventCountry "IND"]
[SourceTitle "playchess.com"]
[Source "ChessBase"]
[SourceQuality "1"]
[TimeControl "5400+30"]

1. e4 {[%emt 0:00:04]} e5 {[%emt 0:00:15]} 2. Nf3 {[%emt 0:01:41]} Nc6 {[%emt 0:00:09]} 3. Bb5 {[%emt 0:00:06]} f5 {[%emt 0:00:10]} 4. Bxc6 {[%emt 0:01:08]} dxc6 {[%emt 0:00:15]} 5. Nxe5 {[%emt 0:00:15]} Qd4 {[%emt 0:00:12]} 6. Nf3 {[%emt 0:03:33]} Qxe4+ {[%emt 0:00:10]} 7. Qe2 {[%emt 0:00:07]} Bd7 {[%emt 0:01:34]} 8. Nc3 {[%emt 0:01:57]} Qxe2+ {[%emt 0:00:11]} 9. Nxe2 {[%emt 0:00:11]} c5 {[%emt 0:00:41]} 10. Ne5 {[%emt 0:02:39]} Nf6 {[%emt 0:09:38]} 11. b3 Bd6 {[%emt 0:01:05]} 12. Bb2 {[%emt 0:05:54]} O-O {[%emt 0:04:52]} 13. d3 {[%emt 0:13:56]} Bxe5 {[%emt 0:11:16]} 14. Bxe5 {[%emt 0:00:08]} Bc6 {[%emt 0:00:30]} 15. Bxf6 {[%emt 0:09:02]} Rxf6 {[%emt 0:00:12]} 16. f3 Re8 {[%emt 0:09:23]} 17. Kf2 {[%emt 0:01:01]} Rfe6 {[%emt 0:08:04]} 18. Rae1 {[%emt 0:02:00]} Kf7 {[%emt 0:01:25]} 19. d4 {[%emt 0:07:23]} Rd6 {[%emt 0:15:39]} 20. c3 {[%emt 0:03:42]} a5 {[%emt 0:07:33]} 21. Ng3 {[%emt 0:03:24]} Rd5 {[%emt 0:01:26]} 22. Rxe8 {[%emt 0:01:12]} Bxe8 {[%emt 0:00:08]} 23. Rd1 {[%emt 0:05:04]} cxd4 {[%emt 0:06:34]} 24. cxd4 {[%emt 0:00:53]} Bb5 {[%emt 0:00:30]} 25. Ne2 {[%emt 0:02:15]} Bxe2 {[%emt 0:00:32]} 26. Kxe2 {[%emt 0:00:02]} Ke6 {[%emt 0:00:45]} 27. Rc1 {[%emt 0:01:36]} Rd7 {[%emt 0:03:57]} 28. Kd3 {[%emt 0:05:49]} b6 {[%emt 0:01:10]} 29. Re1+ {[%emt 0:00:33]} Kd6 {[%emt 0:03:00]} 30. f4 {[%emt 0:00:34]} g6 {[%emt 0:01:24]} 31. Re5 {[%emt 0:00:51]} c6 {[%emt 0:00:12]} 32. a4 {[%emt 0:00:54]} Rf7 {[%emt 0:03:26]} 33. Kc4 {[%emt 0:01:53]} Rb7 {[%emt 0:00:29]} 34. g3 {[%emt 0:02:17]} Rb8 {[%emt 0:00:36]} 35. b4 axb4 {[%emt 0:01:02]} 36. Kxb4 {[%emt 0:04:27]} Ra8 {[%emt 0:00:30]} 37. h3 {[%emt 0:09:01]} Rb8 {[%emt 0:00:45]} 38. g4 {[%emt 0:03:32]} fxg4 {[%emt 0:00:30]} 39. hxg4 {[%emt 0:00:30]} Rf8 {[%emt 0:00:12]} 40. f5 {[%emt 0:00:46]} gxf5 {[%emt 0:00:16]} 41. gxf5 {[%emt 0:00:07]} Rf6 {[%emt 0:01:57]} 42. a5 {[%emt 0:01:36]} bxa5+ {[%emt 0:00:23]} 43. Rxa5 {[%emt 0:00:09]} h5 {[%emt 0:00:34]} 44. Kc4 {[%emt 0:06:23]} h4 {[%emt 0:00:36]} 45. Ra8 {[%emt 0:00:11]} Rh6 {[%emt 0:04:17]} 46. f6 {[%emt 0:00:07]} Ke6 {[%emt 0:02:30]} 47. Kc5 {[%emt 0:00:16]} h3 {[%emt 0:00:16]} 48. Ra1 {[%emt 0:00:25]} h2 {[%emt 0:01:07]} 49. Rh1 {[%emt 0:00:40]} Kd7 {[%emt 0:01:04]} 50. d5 {[%emt 0:00:02]} Rh5 {[%emt 0:00:27]} 51. f7 {[%emt 0:00:03]} Rxd5+ {[%emt 0:00:13]} 52. Kc4 {[%emt 0:00:04]} Rf5 {[%emt 0:00:22]} 53. Rxh2 {[%emt 0:00:05]} Rxf7 {[%emt 0:00:06]} 54. Rd2+ {[%emt 0:00:08]} Kc7 {[%emt 0:00:09]} 55. Kc5 {[%emt 0:00:03]} Rf5+ {[%emt 0:00:07]} 56. Kc4 {[%emt 0:00:04]} Rb5 {[%emt 0:00:37]} 57. Rd1 {[%emt 0:00:18]} Kb6 {[%emt 0:00:19]} 58. Rd8 {[%emt 0:00:05]} Rc5+ {[%emt 0:00:38]} 59. Kb4 {[%emt 0:00:04]} Rc1 {[%emt 0:00:39]} 60. Rb8+ {[%emt 0:00:16]} 1/2-1/2

[Event "IIFL WEALTH VI Mumbai Open 2021"]
[Site "Mumbai"]
[Date "2022.01.04"]
[Round "6.3"]
[White "Raghu Ram Reddy Seelam"]
[Black "Kulkarni, Vikramaditya"]
[Result "0-1"]
[ECO "B07"]
[WhiteElo "1712"]
[BlackElo "2327"]
[Annotator "ChessBase"]
[PlyCount "62"]
[EventDate "2021.12.30"]
[EventType "swiss"]
[EventCountry "IND"]
[SourceTitle "playchess.com"]
[Source "ChessBase"]
[SourceQuality "1"]
[TimeControl "5400+30"]

1. e4 {[%emt 0:00:25]} d6 {[%emt 0:00:37]} 2. d4 {[%emt 0:00:18]} Nf6 {[%emt 0:00:12]} 3. Nc3 {[%emt 0:00:26]} e5 {[%emt 0:00:41]} 4. dxe5 {[%emt 0:00:07]} dxe5 {[%emt 0:00:04]} 5. Qxd8+ {[%emt 0:00:16]} Kxd8 {[%emt 0:00:04]} 6. Bg5 {[%emt 0:02:02]} Nbd7 {[%emt 0:08:39]} 7. O-O-O {[%emt 0:02:53]} Be7 {[%emt 0:16:02]} 8. Bc4 {[%emt 0:02:43]} Ng4 {[%emt 0:05:59]} 9. Bxe7+ {[%emt 0:01:03]} Kxe7 {[%emt 0:00:03]} 10. Nh3 c6 {[%emt 0:00:31]} 11. Rde1 {[%emt 0:07:58]} b5 {[%emt 0:01:19]} 12. Bb3 {[%emt 0:03:29]} Nc5 {[%emt 0:01:56]} 13. f3 {[%emt 0:01:56]} Nf6 {[%emt 0:01:26]} 14. Nf2 {[%emt 0:01:42]} Rb8 {[%emt 0:02:03]} 15. Nd3 {[%emt 0:04:45]} Nfd7 {[%emt 0:03:38]} 16. a3 {[%emt 0:02:56]} Nxd3+ {[%emt 0:06:06]} 17. cxd3 {[%emt 0:00:02]} Rd8 {[%emt 0:00:31]} 18. Rd1 {[%emt 0:05:45]} a5 {[%emt 0:24:06]} 19. Kc2 {[%emt 0:03:46]} Nc5 {[%emt 0:02:54]} 20. Rhf1 {[%emt 0:00:42]} Ba6 {[%emt 0:02:00]} 21. Nb1 {[%emt 0:00:52]} a4 {[%emt 0:01:19]} 22. Ba2 {[%emt 0:00:28]} Nxd3 {[%emt 0:01:55]} 23. Rxd3 {[%emt 0:00:26]} Rxd3 {[%emt 0:00:02]} 24. Kxd3 {[%emt 0:00:09]} b4+ {[%emt 0:00:03]} 25. Bc4 {[%emt 0:00:05]} Rd8+ {[%emt 0:00:04]} 26. Ke3 {[%emt 0:00:05]} Bxc4 {[%emt 0:00:03]} 27. Rc1 {[%emt 0:00:12]} Rd3+ {[%emt 0:00:30]} 28. Kf2 {[%emt 0:00:16]} Ba2 {[%emt 0:03:55]} 29. axb4 {[%emt 0:00:20]} Bxb1 {[%emt 0:00:09]} 30. Rxb1 {[%emt 0:00:04]} Rb3 {[%emt 0:00:13]} 31. Rc1 {[%emt 0:00:40]} Rxb2+ {[%emt 0:00:13]} 0-1